[Event "Titled Tuesday Blitz February 28 Late 2023"]
[White "Urbina Perez, Juan Antonio"]
[Black "Gadimbayli, Abdulla"]
[WhiteFideId "2217368"]
[BlackFideId "13404938"]
[WhiteElo "2197"]
[BlackElo "2390"]
[Result "1/2-1/2"]
[Round "03"]
[TimeControl "180+2"]
[Date "2023.02.28"]
[WhiteClock "0:01:49"]
[BlackClock "0:00:38"]

1. e4 {[%clk 0:03:00]}  c5 {[%clk 0:02:59]} 2. Nf3 {[%clk 0:02:56]}  d6 {[%clk 0:02:59]} 3. Bb5+ {[%clk 0:02:55]}  Nd7 {[%clk 0:02:56]} 4. d4 {[%clk 0:02:51]}  cxd4 {[%clk 0:02:56]} 5. Qxd4 {[%clk 0:02:52]}  a6 {[%clk 0:02:54]} 6. Bxd7+ {[%clk 0:02:51]}  Bxd7 {[%clk 0:02:54]} 7. Nc3 {[%clk 0:02:52]}  Nf6 {[%clk 0:02:53]} 8. Bg5 {[%clk 0:02:49]}  e6 {[%clk 0:02:51]} 9. e5 {[%clk 0:02:44]}  dxe5 {[%clk 0:02:40]} 10. Nxe5 {[%clk 0:02:45]}  Be7 {[%clk 0:02:36]} 11. Bxf6 {[%clk 0:02:39]}  Bxf6 {[%clk 0:02:37]} 12. Qxd7+ {[%clk 0:02:38]}  Qxd7 {[%clk 0:02:36]} 13. Nxd7 {[%clk 0:02:39]}  Kxd7 {[%clk 0:02:37]} 14. O-O-O+ {[%clk 0:02:38]}  Ke7 {[%clk 0:02:36]} 15. Ne4 {[%clk 0:02:38]}  Rac8 {[%clk 0:02:28]} 16. Nxf6 {[%clk 0:02:38]}  gxf6 {[%clk 0:02:28]} 17. Rd3 {[%clk 0:02:36]}  Rhg8 {[%clk 0:02:29]} 18. g3 {[%clk 0:02:35]}  Rc7 {[%clk 0:02:29]} 19. Rhd1 {[%clk 0:02:35]}  f5 {[%clk 0:02:30]} 20. c3 {[%clk 0:02:35]}  h5 {[%clk 0:02:30]} 21. Rd4 {[%clk 0:02:35]}  Rg4 {[%clk 0:02:30]} 22. h3 {[%clk 0:02:33]}  Rxd4 {[%clk 0:02:21]} 23. Rxd4 {[%clk 0:02:33]}  Kf6 {[%clk 0:02:21]} 24. a4 {[%clk 0:02:29]}  Rc5 {[%clk 0:02:04]} 25. Kc2 {[%clk 0:02:27]}  Re5 {[%clk 0:02:02]} 26. Kd2 {[%clk 0:02:24]}  Re4 {[%clk 0:01:41]} 27. Rxe4 {[%clk 0:02:13]}  fxe4 {[%clk 0:01:42]} 28. Ke3 {[%clk 0:02:13]}  Ke5 {[%clk 0:01:42]} 29. g4 {[%clk 0:02:12]}  hxg4 {[%clk 0:01:34]} 30. hxg4 {[%clk 0:02:13]}  f5 {[%clk 0:01:35]} 31. gxf5 {[%clk 0:02:11]}  exf5 {[%clk 0:01:36]} 32. f4+ {[%clk 0:02:05]}  Kd5 {[%clk 0:00:53]} 33. b3 {[%clk 0:02:04]}  Kc6 {[%clk 0:00:53]} 34. Kd4 {[%clk 0:01:56]}  Kd6 {[%clk 0:00:53]} 35. Ke3 {[%clk 0:01:54]}  Kd5 {[%clk 0:00:52]} 36. Kd2 {[%clk 0:01:53]}  b5 {[%clk 0:00:50]} 37. axb5 {[%clk 0:01:52]}  axb5 {[%clk 0:00:51]} 38. Ke3 {[%clk 0:01:51]}  Kc5 {[%clk 0:00:51]} 39. Kd2 {[%clk 0:01:51]}  b4 {[%clk 0:00:49]} 40. c4 {[%clk 0:01:51]}  Kd4 {[%clk 0:00:50]} 41. Ke2 {[%clk 0:01:51]}  e3 {[%clk 0:00:37]} 42. c5 {[%clk 0:01:49]}  Kxc5 {[%clk 0:00:37]} 43. Kxe3 {[%clk 0:01:49]}  Kd5 {[%clk 0:00:37]} 44. Kd3 {[%clk 0:01:49]}  Kc5 {[%clk 0:00:38]} 45. Ke3 {[%clk 0:01:49]}  Kd5 {[%clk 0:00:38]} 46. Kd3 {[%clk 0:01:49]}  Kc5 {[%clk 0:00:38]} 47. Ke3 {[%clk 0:01:49]} 1/2-1/2


[Site "https://www.chess.com"]

[Event "Titled Tuesday Blitz February 28 Late 2023"]
[White "Cheng, Xiao"]
[Black "Makridis, Dimitrios"]
[WhiteFideId "2022915"]
[BlackFideId "25864475"]
[WhiteElo "2509"]
[BlackElo "2277"]
[Result "1/2-1/2"]
[Round "03"]
[TimeControl "180+2"]
[Date "2023.02.28"]
[WhiteClock "0:00:06"]
[BlackClock "0:00:04"]

1. e4 {[%clk 0:03:00]}  c5 {[%clk 0:02:59]} 2. Nf3 {[%clk 0:03:00]}  Nf6 {[%clk 0:02:58]} 3. e5 {[%clk 0:02:55]}  Nd5 {[%clk 0:02:58]} 4. Nc3 {[%clk 0:02:52]}  e6 {[%clk 0:02:58]} 5. Nxd5 {[%clk 0:02:50]}  exd5 {[%clk 0:02:57]} 6. d4 {[%clk 0:02:51]}  Nc6 {[%clk 0:02:57]} 7. c3 {[%clk 0:02:49]}  cxd4 {[%clk 0:02:55]} 8. cxd4 {[%clk 0:02:49]}  d6 {[%clk 0:02:52]} 9. Be2 {[%clk 0:02:48]}  dxe5 {[%clk 0:02:52]} 10. dxe5 {[%clk 0:02:48]}  Be6 {[%clk 0:02:52]} 11. O-O {[%clk 0:02:48]}  Be7 {[%clk 0:02:53]} 12. a3 {[%clk 0:02:46]}  O-O {[%clk 0:02:53]} 13. b4 {[%clk 0:02:46]}  Rc8 {[%clk 0:02:54]} 14. Bb2 {[%clk 0:02:46]}  h6 {[%clk 0:02:53]} 15. Qd2 {[%clk 0:02:43]}  a5 {[%clk 0:02:43]} 16. b5 {[%clk 0:02:43]}  Nb8 {[%clk 0:02:43]} 17. Nd4 {[%clk 0:02:39]}  Nd7 {[%clk 0:02:43]} 18. f4 {[%clk 0:02:39]}  Nc5 {[%clk 0:02:38]} 19. f5 {[%clk 0:02:34]}  Ne4 {[%clk 0:02:31]} 20. Qf4 {[%clk 0:02:29]}  Bg5 {[%clk 0:02:30]} 21. Qg4 {[%clk 0:02:29]}  Bd7 {[%clk 0:02:24]} 22. Kh1 {[%clk 0:02:26]}  Rc5 {[%clk 0:01:36]} 23. Bd3 {[%clk 0:02:15]}  Bc8 {[%clk 0:01:22]} 24. Bxe4 {[%clk 0:02:04]}  dxe4 {[%clk 0:01:23]} 25. Qxe4 {[%clk 0:02:04]}  Qd5 {[%clk 0:01:19]} 26. Qxd5 {[%clk 0:01:51]}  Rxd5 {[%clk 0:01:20]} 27. Rfe1 {[%clk 0:01:41]}  Rfd8 {[%clk 0:01:13]} 28. e6 {[%clk 0:01:33]}  Bf6 {[%clk 0:01:13]} 29. Rac1 {[%clk 0:01:10]}  Bxd4 {[%clk 0:01:01]} 30. Bxd4 {[%clk 0:01:04]}  Rxd4 {[%clk 0:01:02]} 31. e7 {[%clk 0:01:04]}  Re8 {[%clk 0:01:02]} 32. Rxc8 {[%clk 0:01:05]}  Rxc8 {[%clk 0:01:03]} 33. e8=Q+ {[%clk 0:01:05]}  Rxe8 {[%clk 0:01:03]} 34. Rxe8+ {[%clk 0:01:05]}  Kh7 {[%clk 0:01:04]} 35. h3 {[%clk 0:01:03]}  Rd5 {[%clk 0:01:03]} 36. Re7 {[%clk 0:01:03]}  f6 {[%clk 0:00:49]} 37. Rxb7 {[%clk 0:01:01]}  Rxf5 {[%clk 0:00:49]} 38. Kh2 {[%clk 0:00:58]}  Rc5 {[%clk 0:00:41]} 39. b6 {[%clk 0:00:56]}  Rc3 {[%clk 0:00:40]} 40. Ra7 {[%clk 0:00:40]}  Rxa3 {[%clk 0:00:40]} 41. b7 {[%clk 0:00:40]}  Rb3 {[%clk 0:00:41]} 42. Kg1 {[%clk 0:00:39]}  a4 {[%clk 0:00:40]} 43. Kf2 {[%clk 0:00:39]}  a3 {[%clk 0:00:40]} 44. Ke2 {[%clk 0:00:40]}  Rb2+ {[%clk 0:00:35]} 45. Kd3 {[%clk 0:00:38]}  a2 {[%clk 0:00:36]} 46. Rxa2 {[%clk 0:00:37]}  Rxb7 {[%clk 0:00:35]} 47. Ke4 {[%clk 0:00:38]}  Rb3 {[%clk 0:00:35]} 48. Rf2 {[%clk 0:00:31]}  h5 {[%clk 0:00:33]} 49. Kf5 {[%clk 0:00:29]}  Rg3 {[%clk 0:00:32]} 50. Kf4 {[%clk 0:00:23]}  h4 {[%clk 0:00:32]} 51. Ra2 {[%clk 0:00:23]}  Kg6 {[%clk 0:00:31]} 52. Rc2 {[%clk 0:00:23]}  f5 {[%clk 0:00:29]} 53. Rc6+ {[%clk 0:00:19]}  Kh5 {[%clk 0:00:29]} 54. Rc2 {[%clk 0:00:17]}  g6 {[%clk 0:00:27]} 55. Rd2 {[%clk 0:00:17]}  Ra3 {[%clk 0:00:26]} 56. Rb2 {[%clk 0:00:16]}  Ra4+ {[%clk 0:00:25]} 57. Kf3 {[%clk 0:00:15]}  Kg5 {[%clk 0:00:26]} 58. Rc2 {[%clk 0:00:15]}  Rf4+ {[%clk 0:00:26]} 59. Ke3 {[%clk 0:00:15]}  Rf1 {[%clk 0:00:26]} 60. Rb2 {[%clk 0:00:14]}  Ra1 {[%clk 0:00:22]} 61. Kf3 {[%clk 0:00:14]}  Ra3+ {[%clk 0:00:22]} 62. Kf2 {[%clk 0:00:14]}  Kf6 {[%clk 0:00:20]} 63. Re2 {[%clk 0:00:14]}  g5 {[%clk 0:00:20]} 64. Rc2 {[%clk 0:00:14]}  Rb3 {[%clk 0:00:21]} 65. Rc6+ {[%clk 0:00:13]}  Ke5 {[%clk 0:00:21]} 66. Rc5+ {[%clk 0:00:13]}  Ke4 {[%clk 0:00:21]} 67. Rc4+ {[%clk 0:00:13]}  Kd5 {[%clk 0:00:22]} 68. Rc8 {[%clk 0:00:14]}  Rb6 {[%clk 0:00:21]} 69. Rf8 {[%clk 0:00:13]}  Ke5 {[%clk 0:00:20]} 70. Re8+ {[%clk 0:00:13]}  Re6 {[%clk 0:00:21]} 71. Rg8 {[%clk 0:00:13]}  Kf4 {[%clk 0:00:21]} 72. Rb8 {[%clk 0:00:12]}  Re4 {[%clk 0:00:21]} 73. Rb3 {[%clk 0:00:12]}  g4 {[%clk 0:00:21]} 74. hxg4 {[%clk 0:00:12]}  fxg4 {[%clk 0:00:22]} 75. Rb8 {[%clk 0:00:12]}  g3+ {[%clk 0:00:21]} 76. Kf1 {[%clk 0:00:12]}  Ke3 {[%clk 0:00:17]} 77. Rh8 {[%clk 0:00:11]}  Rd4 {[%clk 0:00:15]} 78. Re8+ {[%clk 0:00:11]}  Kd3 {[%clk 0:00:15]} 79. Rh8 {[%clk 0:00:10]}  Rf4+ {[%clk 0:00:15]} 80. Kg1 {[%clk 0:00:10]}  Rb4 {[%clk 0:00:15]} 81. Rd8+ {[%clk 0:00:10]}  Kc2 {[%clk 0:00:14]} 82. Rc8+ {[%clk 0:00:10]}  Kb2 {[%clk 0:00:14]} 83. Kf1 {[%clk 0:00:08]}  Rf4+ {[%clk 0:00:14]} 84. Kg1 {[%clk 0:00:06]}  Rf2 {[%clk 0:00:15]} 85. Rh8 {[%clk 0:00:05]}  Rc2 {[%clk 0:00:13]} 86. Kf1 {[%clk 0:00:04]}  Rc4 {[%clk 0:00:09]} 87. Rb8+ {[%clk 0:00:03]}  Ka3 {[%clk 0:00:10]} 88. Rh8 {[%clk 0:00:03]}  Ka4 {[%clk 0:00:10]} 89. Ra8+ {[%clk 0:00:03]}  Kb5 {[%clk 0:00:10]} 90. Rb8+ {[%clk 0:00:04]}  Ka6 {[%clk 0:00:09]} 91. Ke2 {[%clk 0:00:02]}  Rf4 {[%clk 0:00:09]} 92. Ke3 {[%clk 0:00:03]}  Rf2 {[%clk 0:00:04]} 93. Ra8+ {[%clk 0:00:03]}  Kb7 {[%clk 0:00:03]} 94. Rh8 {[%clk 0:00:04]}  Rxg2 {[%clk 0:00:03]} 95. Rxh4 {[%clk 0:00:05]}  Ra2 {[%clk 0:00:03]} 96. Rg4 {[%clk 0:00:05]}  g2 {[%clk 0:00:03]} 97. Kf3 {[%clk 0:00:05]}  Kc6 {[%clk 0:00:04]} 98. Rxg2 {[%clk 0:00:06]}  Rxg2 {[%clk 0:00:04]} 99. Kxg2 {[%clk 0:00:06]} 1/2-1/2


[Site "https://www.chess.com"]

[Event "Titled Tuesday Blitz February 28 Late 2023"]
[White "Mirzoev, Azer"]
[Black "Prydun, Andriy"]
[WhiteFideId "13400304"]
[BlackFideId "14145898"]
[WhiteElo "2525"]
[BlackElo "2164"]
[Result "1-0"]
[Round "03"]
[TimeControl "180+2"]
[Date "2023.02.28"]
[WhiteClock "0:00:40"]
[BlackClock "0:00:04"]

1. c4 {[%clk 0:02:59]}  Nf6 {[%clk 0:03:00]} 2. Nc3 {[%clk 0:02:58]}  e6 {[%clk 0:02:59]} 3. e4 {[%clk 0:02:58]}  e5 {[%clk 0:02:57]} 4. Nf3 {[%clk 0:02:57]}  Nc6 {[%clk 0:02:56]} 5. d3 {[%clk 0:02:56]}  h6 {[%clk 0:02:55]} 6. Be2 {[%clk 0:02:56]}  Bb4 {[%clk 0:02:53]} 7. O-O {[%clk 0:02:57]}  Bxc3 {[%clk 0:02:53]} 8. bxc3 {[%clk 0:02:57]}  d6 {[%clk 0:02:54]} 9. Nd2 {[%clk 0:02:54]}  O-O {[%clk 0:02:53]} 10. Re1 {[%clk 0:02:54]}  Be6 {[%clk 0:02:51]} 11. Nf1 {[%clk 0:02:54]}  Ne7 {[%clk 0:02:31]} 12. f4 {[%clk 0:02:51]}  exf4 {[%clk 0:02:30]} 13. Bxf4 {[%clk 0:02:51]}  c6 {[%clk 0:02:31]} 14. Rb1 {[%clk 0:02:47]}  b5 {[%clk 0:01:35]} 15. cxb5 {[%clk 0:02:45]}  Qb6+ {[%clk 0:01:27]} 16. Be3 {[%clk 0:02:43]}  Qc7 {[%clk 0:01:25]} 17. c4 {[%clk 0:02:40]}  d5 {[%clk 0:01:24]} 18. exd5 {[%clk 0:02:19]}  cxd5 {[%clk 0:01:25]} 19. c5 {[%clk 0:02:19]}  Nf5 {[%clk 0:01:20]} 20. Bf2 {[%clk 0:02:18]}  d4 {[%clk 0:01:19]} 21. Bf3 {[%clk 0:02:10]}  Rab8 {[%clk 0:01:14]} 22. Qc2 {[%clk 0:02:06]}  Qa5 {[%clk 0:00:51]} 23. a4 {[%clk 0:02:02]}  Rfc8 {[%clk 0:00:48]} 24. c6 {[%clk 0:01:59]}  a6 {[%clk 0:00:34]} 25. Qd2 {[%clk 0:01:34]}  Qc7 {[%clk 0:00:24]} 26. Ng3 {[%clk 0:01:24]}  Nh4 {[%clk 0:00:22]} 27. Be4 {[%clk 0:01:18]}  axb5 {[%clk 0:00:21]} 28. axb5 {[%clk 0:01:18]}  Ng4 {[%clk 0:00:11]} 29. h3 {[%clk 0:01:14]}  Nxf2 {[%clk 0:00:06]} 30. Qxf2 {[%clk 0:01:15]}  f5 {[%clk 0:00:06]} 31. Bxf5 {[%clk 0:01:02]}  Bxf5 {[%clk 0:00:05]} 32. Nxf5 {[%clk 0:01:02]}  Rf8 {[%clk 0:00:04]} 33. Qxh4 {[%clk 0:01:01]}  Rxf5 {[%clk 0:00:04]} 34. Re7 {[%clk 0:00:55]}  Qd6 {[%clk 0:00:04]} 35. c7 {[%clk 0:00:46]}  Rc8 {[%clk 0:00:04]} 36. b6 {[%clk 0:00:41]}  g5 {[%clk 0:00:04]} 37. Qe4 {[%clk 0:00:41]}  Rf4 {[%clk 0:00:04]} 38. Qe6+ {[%clk 0:00:39]}  Qxe6 {[%clk 0:00:04]} 39. Rxe6 {[%clk 0:00:40]} 1-0


[Site "https://www.chess.com"]

[Event "Titled Tuesday Blitz February 28 Late 2023"]
[White "Al-Tarboush, Ward"]
[Black "Toncheva, Nadya"]
[WhiteFideId "7601450"]
[BlackFideId "2924056"]
[WhiteElo "2267"]
[BlackElo "2101"]
[Result "0-1"]
[Round "03"]
[TimeControl "180+2"]
[Date "2023.02.28"]
[WhiteClock "0:00:10"]
[BlackClock "0:00:08"]

1. e4 {[%clk 0:03:00]}  c5 {[%clk 0:03:00]} 2. Nf3 {[%clk 0:02:58]}  Nc6 {[%clk 0:03:00]} 3. d4 {[%clk 0:02:57]}  cxd4 {[%clk 0:03:01]} 4. Nxd4 {[%clk 0:02:58]}  g6 {[%clk 0:03:02]} 5. c4 {[%clk 0:02:57]}  Bg7 {[%clk 0:03:02]} 6. Be3 {[%clk 0:02:57]}  Nf6 {[%clk 0:03:03]} 7. Nc3 {[%clk 0:02:57]}  O-O {[%clk 0:03:03]} 8. Be2 {[%clk 0:02:48]}  d6 {[%clk 0:03:03]} 9. O-O {[%clk 0:02:48]}  Bd7 {[%clk 0:03:04]} 10. f3 {[%clk 0:02:46]}  Nxd4 {[%clk 0:03:03]} 11. Bxd4 {[%clk 0:02:46]}  a5 {[%clk 0:03:04]} 12. Qd2 {[%clk 0:02:45]}  Bc6 {[%clk 0:03:04]} 13. b3 {[%clk 0:02:45]}  Nd7 {[%clk 0:03:04]} 14. Bxg7 {[%clk 0:02:43]}  Kxg7 {[%clk 0:03:05]} 15. Rfd1 {[%clk 0:02:42]}  Qb6+ {[%clk 0:03:03]} 16. Kh1 {[%clk 0:02:40]}  Rfc8 {[%clk 0:02:59]} 17. Rac1 {[%clk 0:02:29]}  a4 {[%clk 0:02:57]} 18. Rb1 {[%clk 0:02:25]}  axb3 {[%clk 0:02:55]} 19. axb3 {[%clk 0:02:22]}  Qb4 {[%clk 0:02:21]} 20. Qd4+ {[%clk 0:02:22]}  Kg8 {[%clk 0:02:16]} 21. f4 {[%clk 0:02:16]}  Ra3 {[%clk 0:02:10]} 22. e5 {[%clk 0:01:57]}  dxe5 {[%clk 0:02:01]} 23. fxe5 {[%clk 0:01:52]}  Rxb3 {[%clk 0:01:55]} 24. Rxb3 {[%clk 0:01:47]}  Qxb3 {[%clk 0:01:54]} 25. e6 {[%clk 0:01:47]}  fxe6 {[%clk 0:01:48]} 26. Bg4 {[%clk 0:01:45]}  Nf8 {[%clk 0:01:34]} 27. h4 {[%clk 0:01:31]}  Qxc4 {[%clk 0:01:04]} 28. Ne2 {[%clk 0:01:13]}  Qxd4 {[%clk 0:01:01]} 29. Nxd4 {[%clk 0:01:14]}  Bd5 {[%clk 0:01:01]} 30. h5 {[%clk 0:01:11]}  Kg7 {[%clk 0:00:59]} 31. Kh2 {[%clk 0:01:09]}  Ra8 {[%clk 0:00:57]} 32. Nb5 {[%clk 0:01:04]}  Ra2 {[%clk 0:00:52]} 33. Bh3 {[%clk 0:01:03]}  Rb2 {[%clk 0:00:50]} 34. Nc7 {[%clk 0:01:03]}  Bc6 {[%clk 0:00:46]} 35. Rd8 {[%clk 0:01:00]}  g5 {[%clk 0:00:42]} 36. h6+ {[%clk 0:00:59]}  Kf7 {[%clk 0:00:40]} 37. Kg3 {[%clk 0:00:49]}  g4 {[%clk 0:00:35]} 38. Bxg4 {[%clk 0:00:42]}  Rxg2+ {[%clk 0:00:34]} 39. Kh3 {[%clk 0:00:42]}  Ng6 {[%clk 0:00:26]} 40. Bxe6+ {[%clk 0:00:32]}  Kf6 {[%clk 0:00:24]} 41. Rd4 {[%clk 0:00:22]}  Rg1 {[%clk 0:00:20]} 42. Bg8 {[%clk 0:00:13]}  Rh1+ {[%clk 0:00:18]} 43. Kg3 {[%clk 0:00:13]}  Rxh6 {[%clk 0:00:18]} 44. Rd2 {[%clk 0:00:10]}  Rh1 {[%clk 0:00:17]} 45. Rf2+ {[%clk 0:00:10]}  Kg7 {[%clk 0:00:16]} 46. Bc4 {[%clk 0:00:09]}  Rg1+ {[%clk 0:00:16]} 47. Kh2 {[%clk 0:00:08]}  Rc1 {[%clk 0:00:15]} 48. Ne6+ {[%clk 0:00:09]}  Kh6 {[%clk 0:00:13]} 49. Bd3 {[%clk 0:00:09]}  Ne5 {[%clk 0:00:09]} 50. Bf5 {[%clk 0:00:07]}  Rh1+ {[%clk 0:00:08]} 51. Kg3 {[%clk 0:00:08]}  Rg1+ {[%clk 0:00:08]} 52. Kf4 {[%clk 0:00:07]}  Ng6+ {[%clk 0:00:08]} 53. Ke3 {[%clk 0:00:07]}  Rg3+ {[%clk 0:00:07]} 54. Kd2 {[%clk 0:00:07]}  Rg2 {[%clk 0:00:06]} 55. Rxg2 {[%clk 0:00:07]}  Bxg2 {[%clk 0:00:07]} 56. Nc5 {[%clk 0:00:07]}  Bc6 {[%clk 0:00:07]} 57. Ne6 {[%clk 0:00:07]}  Kh5 {[%clk 0:00:06]} 58. Kc3 {[%clk 0:00:05]}  Kh4 {[%clk 0:00:05]} 59. Kd4 {[%clk 0:00:03]}  Kg3 {[%clk 0:00:05]} 60. Ng5 {[%clk 0:00:03]}  h6 {[%clk 0:00:04]} 61. Nf7 {[%clk 0:00:02]}  Nh4 {[%clk 0:00:03]} 62. Be6 {[%clk 0:00:02]}  h5 {[%clk 0:00:02]} 63. Ne5 {[%clk 0:00:02]}  Nf3+ {[%clk 0:00:02]} 64. Nxf3 {[%clk 0:00:02]}  Kxf3 {[%clk 0:00:03]} 65. Ke5 {[%clk 0:00:02]}  h4 {[%clk 0:00:04]} 66. Kf5 {[%clk 0:00:01]}  Kg3 {[%clk 0:00:04]} 67. Kg5 {[%clk 0:00:01]}  h3 {[%clk 0:00:04]} 68. Bxh3 {[%clk 0:00:01]}  Kxh3 {[%clk 0:00:05]} 69. Kf5 {[%clk 0:00:02]}  Kg3 {[%clk 0:00:06]} 70. Ke6 {[%clk 0:00:03]}  Kf4 {[%clk 0:00:06]} 71. Kxe7 {[%clk 0:00:04]}  Ke5 {[%clk 0:00:07]} 72. Kd8 {[%clk 0:00:04]}  b5 {[%clk 0:00:07]} 73. Kc7 {[%clk 0:00:05]}  Bd5 {[%clk 0:00:08]} 74. Kb6 {[%clk 0:00:06]}  b4 {[%clk 0:00:09]} 75. Kc5 {[%clk 0:00:06]}  b3 {[%clk 0:00:09]} 76. Kb4 {[%clk 0:00:07]}  b2 {[%clk 0:00:10]} 77. Kc3 {[%clk 0:00:08]}  b1=Q {[%clk 0:00:09]} 78. Kd2 {[%clk 0:00:08]}  Qb2+ {[%clk 0:00:10]} 79. Ke3 {[%clk 0:00:09]}  Qd4+ {[%clk 0:00:09]} 80. Ke2 {[%clk 0:00:09]}  Qc3 {[%clk 0:00:09]} 81. Kd1 {[%clk 0:00:09]}  Qb2 {[%clk 0:00:08]} 82. Ke1 {[%clk 0:00:09]}  Bf3 {[%clk 0:00:06]} 83. Kf1 {[%clk 0:00:10]}  Qe2+ {[%clk 0:00:07]} 84. Kg1 {[%clk 0:00:10]}  Qg2# {[%clk 0:00:08]} 0-1


[Site "https://www.chess.com"]

[Event "Titled Tuesday Blitz February 28 Late 2023"]
[White "Petrovic, Aleksa"]
[Black "Bjelobrk, Igor"]
[WhiteFideId "967629"]
[BlackFideId "4300726"]
[WhiteElo "2304"]
[BlackElo "2335"]
[Result "0-1"]
[Round "03"]
[TimeControl "180+2"]
[Date "2023.02.28"]
[WhiteClock "0:00:21"]
[BlackClock "0:00:09"]

1. d4 {[%clk 0:03:00]}  e6 {[%clk 0:02:56]} 2. c4 {[%clk 0:03:00]}  Bb4+ {[%clk 0:02:53]} 3. Bd2 {[%clk 0:03:00]}  a5 {[%clk 0:02:51]} 4. Nf3 {[%clk 0:02:59]}  d6 {[%clk 0:02:28]} 5. g3 {[%clk 0:02:56]}  Nc6 {[%clk 0:02:27]} 6. Bg2 {[%clk 0:02:55]}  e5 {[%clk 0:02:25]} 7. e3 {[%clk 0:02:50]}  Nf6 {[%clk 0:02:13]} 8. O-O {[%clk 0:02:49]}  Bxd2 {[%clk 0:02:13]} 9. Qxd2 {[%clk 0:02:47]}  O-O {[%clk 0:02:13]} 10. Nc3 {[%clk 0:02:47]}  Re8 {[%clk 0:02:02]} 11. h3 {[%clk 0:02:38]}  h6 {[%clk 0:02:00]} 12. Rfd1 {[%clk 0:02:31]}  Bf5 {[%clk 0:01:58]} 13. dxe5 {[%clk 0:02:22]}  dxe5 {[%clk 0:01:52]} 14. Nd5 {[%clk 0:02:21]}  Ne4 {[%clk 0:01:45]} 15. Qe1 {[%clk 0:02:11]}  Qc8 {[%clk 0:01:42]} 16. Rac1 {[%clk 0:01:57]}  Nc5 {[%clk 0:00:57]} 17. Qf1 {[%clk 0:01:51]}  Nb4 {[%clk 0:00:52]} 18. Nc3 {[%clk 0:01:18]}  c6 {[%clk 0:00:45]} 19. a3 {[%clk 0:01:16]}  Nbd3 {[%clk 0:00:43]} 20. Rc2 {[%clk 0:01:11]}  e4 {[%clk 0:00:39]} 21. Nd4 {[%clk 0:01:09]}  Bh7 {[%clk 0:00:39]} 22. b3 {[%clk 0:01:03]}  Ra6 {[%clk 0:00:31]} 23. Rb1 {[%clk 0:01:01]}  Rb6 {[%clk 0:00:31]} 24. Kh2 {[%clk 0:00:56]}  Rd8 {[%clk 0:00:29]} 25. Qe2 {[%clk 0:00:54]}  Qc7 {[%clk 0:00:28]} 26. Qh5 {[%clk 0:00:51]}  Bg6 {[%clk 0:00:26]} 27. Qg4 {[%clk 0:00:49]}  Ne5 {[%clk 0:00:22]} 28. Qe2 {[%clk 0:00:47]}  Qe7 {[%clk 0:00:21]} 29. b4 {[%clk 0:00:45]}  axb4 {[%clk 0:00:21]} 30. axb4 {[%clk 0:00:46]}  Ncd3 {[%clk 0:00:20]} 31. b5 {[%clk 0:00:41]}  c5 {[%clk 0:00:19]} 32. Na4 {[%clk 0:00:37]}  Rf6 {[%clk 0:00:18]} 33. Nb3 {[%clk 0:00:29]}  Rxf2 {[%clk 0:00:17]} 34. Qxf2 {[%clk 0:00:29]}  Nxf2 {[%clk 0:00:17]} 35. Rxf2 {[%clk 0:00:30]}  Nd3 {[%clk 0:00:15]} 36. Rd2 {[%clk 0:00:30]}  Rd6 {[%clk 0:00:15]} 37. Rf1 {[%clk 0:00:28]}  h5 {[%clk 0:00:14]} 38. h4 {[%clk 0:00:28]}  Qe5 {[%clk 0:00:13]} 39. Nc1 {[%clk 0:00:20]}  Bf5 {[%clk 0:00:12]} 40. Nxd3 {[%clk 0:00:18]}  exd3 {[%clk 0:00:13]} 41. Nb2 {[%clk 0:00:18]}  Rg6 {[%clk 0:00:13]} 42. Rf4 {[%clk 0:00:18]}  Rd6 {[%clk 0:00:10]} 43. Nd1 {[%clk 0:00:17]}  g6 {[%clk 0:00:09]} 44. e4 {[%clk 0:00:17]}  Be6 {[%clk 0:00:09]} 45. Nf2 {[%clk 0:00:17]}  Bxc4 {[%clk 0:00:09]} 46. Rf3 {[%clk 0:00:18]}  Bxb5 {[%clk 0:00:09]} 47. Nxd3 {[%clk 0:00:17]}  Bxd3 {[%clk 0:00:09]} 48. Rfxd3 {[%clk 0:00:18]}  Rxd3 {[%clk 0:00:09]} 49. Rxd3 {[%clk 0:00:19]}  b5 {[%clk 0:00:09]} 50. Rd5 {[%clk 0:00:19]}  Qc3 {[%clk 0:00:09]} 51. e5 {[%clk 0:00:19]}  b4 {[%clk 0:00:09]} 52. e6 {[%clk 0:00:20]}  fxe6 {[%clk 0:00:09]} 53. Rd8+ {[%clk 0:00:20]}  Kf7 {[%clk 0:00:10]} 54. Rd7+ {[%clk 0:00:20]}  Kf6 {[%clk 0:00:09]} 55. Rd8 {[%clk 0:00:21]}  b3 {[%clk 0:00:09]} 0-1


[Site "https://www.chess.com"]

[Event "Titled Tuesday Blitz February 28 Late 2023"]
[White "Diaz Perez, Michel Alejandro"]
[Black "Sokac, Marko"]
[WhiteFideId "3517179"]
[BlackFideId "14531356"]
[WhiteElo "2333"]
[BlackElo "2355"]
[Result "0-1"]
[Round "03"]
[TimeControl "180+2"]
[Date "2023.02.28"]
[WhiteClock "0:01:20"]
[BlackClock "0:01:36"]

1. Nf3 {[%clk 0:03:00]}  e6 {[%clk 0:02:59]} 2. c4 {[%clk 0:03:01]}  g5 {[%clk 0:02:58]} 3. h3 {[%clk 0:02:56]}  Bg7 {[%clk 0:02:57]} 4. d4 {[%clk 0:02:56]}  h6 {[%clk 0:02:57]} 5. Nc3 {[%clk 0:02:55]}  d6 {[%clk 0:02:55]} 6. e4 {[%clk 0:02:55]}  Ne7 {[%clk 0:02:53]} 7. Be3 {[%clk 0:02:53]}  Nd7 {[%clk 0:02:49]} 8. Bd3 {[%clk 0:02:42]}  b6 {[%clk 0:02:46]} 9. h4 {[%clk 0:02:39]}  g4 {[%clk 0:02:45]} 10. Nd2 {[%clk 0:02:39]}  h5 {[%clk 0:02:42]} 11. Nf1 {[%clk 0:02:39]}  Bb7 {[%clk 0:02:38]} 12. Ng3 {[%clk 0:02:39]}  a6 {[%clk 0:02:34]} 13. Qc2 {[%clk 0:02:31]}  c5 {[%clk 0:02:31]} 14. d5 {[%clk 0:02:31]}  Qc7 {[%clk 0:02:22]} 15. O-O-O {[%clk 0:02:27]}  O-O-O {[%clk 0:02:18]} 16. Bg5 {[%clk 0:02:27]}  Rde8 {[%clk 0:02:10]} 17. Qd2 {[%clk 0:02:12]}  Kb8 {[%clk 0:02:06]} 18. Kb1 {[%clk 0:02:09]}  Ne5 {[%clk 0:02:03]} 19. Be2 {[%clk 0:02:06]}  N7g6 {[%clk 0:02:00]} 20. dxe6 {[%clk 0:02:05]}  fxe6 {[%clk 0:01:46]} 21. Qxd6 {[%clk 0:02:02]}  Nf7 {[%clk 0:01:47]} 22. Qxc7+ {[%clk 0:01:58]}  Kxc7 {[%clk 0:01:47]} 23. Be3 {[%clk 0:01:55]}  Nd6 {[%clk 0:01:45]} 24. Rd2 {[%clk 0:01:45]}  Bxc3 {[%clk 0:01:42]} 25. bxc3 {[%clk 0:01:44]}  Nxe4 {[%clk 0:01:43]} 26. Nxe4 {[%clk 0:01:29]}  Bxe4+ {[%clk 0:01:43]} 27. Bd3 {[%clk 0:01:30]}  Bxg2 {[%clk 0:01:40]} 28. Rg1 {[%clk 0:01:26]}  Nxh4 {[%clk 0:01:38]} 29. Bf4+ {[%clk 0:01:26]}  e5 {[%clk 0:01:36]} 30. Bg3 {[%clk 0:01:25]}  Nf3 {[%clk 0:01:36]} 31. Rxg2 {[%clk 0:01:23]}  Nxd2+ {[%clk 0:01:36]} 32. Kc2 {[%clk 0:01:23]}  Nf3 {[%clk 0:01:36]} 33. Be4 {[%clk 0:01:20]}  Ne1+ {[%clk 0:01:36]} 0-1


[Site "https://www.chess.com"]